Cogmind - Beta 15 @@@ ROGUE MODE // 2025.06.23 @ 21:06:55 Player: 5N-P3R Result: Destroyed by G-50 Soldier with Heavy Laser Performance ------------- Evolutions (2) 1000 Regions Visited (5) 1000 Robots Destroyed (26) 130 Value Destroyed (742) 742 Prototype IDs (0) 0 Alien Tech Used (0) 0 Bonus (0) 0 TOTAL SCORE: 2872 Bonus ------- None Cogmind --------- Core Integrity 0/550 Matter 219/300 Energy 81/100 System Corruption 0% Temperature Cool (18) Movement Core (50) Location -8/Materials Parts ------- > --- POWER (2) -------- (None) > --- PROPULSION (3) --- (None) > --- UTILITY (4) ------ Improved Terrain Scan Processor > --- WEAPON (2) ------- Small Laser > --- INVENTORY (5) ---- Large Matter Pod (150) Peak State ------------ > --- POWER ------------ Light Ion Engine > --- PROPULSION ------- Wheel Compact Wheel > --- UTILITY ---------- Scrap Suit Improved Terrain Scan Processor > --- WEAPON ----------- Minigun Heavy Mace > --- INVENTORY -------- Nuclear Core Light Fission Core Large Matter Pod Small Laser [Rating: 21] Favorites ----------- Power Light Deuterium Engine Engine Light Deuterium Engine Propulsion Light Treads Treads Light Treads Wheel Wheel Utility Improved Signal Interpreter Device Sensor Array Storage Small Storage Unit Processor Improved Signal Interpreter Hackware Hacking Suite Protection Light Armor Plating Weapon Medium Laser Energy Gun Medium Laser Ballistic Gun Minigun Ballistic Cannon Light Cannon Impact Weapon Heavy Mace Build | -11 -10 -10 -10 -9 -8 ------- Run | Yrd Mat Min Exi Min Mat Slots Evolved 4 | . . . . . 4 Power 1 | . . . . . 1 Propulsion 1 | . . . . . 1 Utility 2 | . . . . . 2 Weapon . | . . . . . . Parts Attached 26 | 6 3 7 . 7 3 Power 4 | 1 . 1 . 2 . Engine 4 | 1 . 1 . 2 . Core . | . . . . . . Reactor . | . . . . . . Propulsion 6 | 2 . 2 . 2 . Treads 2 | 2 . . . . . Leg . | . . . . . . Wheel 4 | . . 2 . 2 . Hover . | . . . . . . Flight . | . . . . . . Utility 8 | 1 2 3 . 1 1 Device 2 | . 1 . . 1 . Storage 2 | 1 . 1 . . . Processor 2 | . . 1 . . 1 Hackware 1 | . . 1 . . . Protection 1 | . 1 . . . . Artifact . | . . . . . . Weapon 8 | 2 1 1 . 2 2 Energy Gun 3 | 2 . . . 1 . Energy Cannon . | . . . . . . Ballistic Gun 1 | . . . . . 1 Ballistic Cannon 3 | . 1 . . 1 1 Launcher . | . . . . . . Special Weapon . | . . . . . . Impact Weapon 1 | . . 1 . . . Slashing Weapon . | . . . . . . Piercing Weapon . | . . . . . . Special Melee Weapon . | . . . . . . Unidentified Prototypes . | . . . . . . Parts Lost 16 | . 2 3 . 4 7 Power 3 | . 1 . . 1 1 Propulsion 5 | . . 1 . 2 2 Utility 3 | . 1 1 . . 1 Weapon 5 | . . 1 . 1 3 Highest Loss Streak 5 | . 2 1 . 3 5 To Critical Strikes . | . . . . . . Average Backups 2 | . 1 1 4 3 3 Power 1 | . . . 2 2 1 Propulsion . | . . . . . . Utility 1 | . 1 1 2 1 1 Weapon . | . . . . . 1 Tool/Special . | . . . . . . Unused Backups 6 | . 2 . . 1 3 Power 3 | . . . . 1 2 Propulsion . | . . . . . . Utility 3 | . 2 . . . 1 Weapon . | . . . . . . Tool/Special . | . . . . . . Average Slot Usage (%) 89 | . 98 86 100 89 48 Engine 11 | . 14 8 14 13 4 Treads 12 | . 28 20 . . . Wheel 12 | . . 4 28 23 11 Device 7 | . 13 11 . 3 7 Storage 3 | . 9 5 . . . Processor 7 | . . 8 14 10 7 Hackware 5 | . . 2 14 10 . Protection 1 | . 4 . . . . Energy Gun 11 | . 15 14 14 6 . Ballistic Cannon 4 | . 12 1 . 5 1 Impact Weapon 8 | . . 8 14 14 8 Peak Build Rating 21 | 6 7 15 16 17 21 Average Rating 11 | 4 6 9 15 14 17 On Entrance 9 | . 6 5 15 16 15 Naked Turns . | . . . . . . Heaviest Build 14 | 12 14 14 10 12 13 Greatest Support 40 | 40 40 40 20 26 26 Greatest Overweight (x) 4 | 3 . . . 2 4 Average Overweight (x) . | . . . . . . Largest Inventory Capacity 8 | 8 8 5 5 5 5 Average Capacity 5 | 7 6 5 5 5 5 Most Carried 5 | 2 4 4 5 5 5 Average Carried 2 | . 1 2 4 3 3 Final Capacity 8 | 8 5 5 5 5 5 Final Carried 5 | . 2 2 5 3 1 Class Distribution -------------------- 87% | Mutant 6% | Scavenger-Scrapper 6% | Scavenger-Mutant Dominant Class ---------------- Mutant | -10/Materials Mutant | -10/Mines Mutant | -10/Exiles Mutant | -9/Mines Mutant | -8/Materials Resources | -11 -10 -10 -10 -9 -8 ----------- Run | Yrd Mat Min Exi Min Mat Matter Collected 727 | 203 247 118 . 109 50 Remotely . | . . . . . . Salvage Created 865 | . 84 65 . 460 256 Parts 37 | . 9 3 . 11 14 Haulers Intercepted . | . . . . . . Recyclers Shooed . | . . . . . . Parts Field Recycled . | . . . . . . Retrieved Matter . | . . . . . . Parts Self-Destructed . | . . . . . . Prevented . | . . . . . . Kills | -11 -10 -10 -10 -9 -8 ------- Run | Yrd Mat Min Exi Min Mat Combat Hostiles Destroyed 29 | . 4 7 . 12 6 Melee 10 | . . 5 . 3 2 Guns 2 | . . 2 . . . Cannons 7 | . 4 . . 1 2 AOE 1 | . . . . . 1 Classes Destroyed 8 | . 3 1 . 2 2 Worker 1 | . . . . . 1 Tunneler 1 | . . . . 1 . Recycler 1 | . . . . 1 . Watcher 2 | . 2 . . . . Swarmer 5 | . 3 2 . . . Grunt 15 | . 1 . . 9 5 Sentry 1 | . . . . . 1 Assembled 8 | . . 5 . 3 . Best Kill Streak 6 | . 3 2 . 3 6 Combat Bots Only 5 | . 3 2 . 2 5 Max Kills in Single Turn 1 | . 1 1 . 1 1 Gunslinging . | . . . . . . Exploded 1 | . . . . . 1 Melee 1 | . . 1 . 1 1 Uniques/NPCs Destroyed . | . . . . . . Combat | -11 -10 -10 -10 -9 -8 -------- Run | Yrd Mat Min Exi Min Mat Hostile Shots Fired 263 | . 52 44 . 46 121 Missed 69 | . 16 10 . 10 33 Hits 194 | . 36 34 . 36 88 Melee 1 | . . 1 . . . Projectile 193 | . 36 33 . 36 88 Critical Strikes 2 | . 1 . . . 1 Damage Taken 2625 | . 415 329 . 423 1458 Core 788 | . 45 54 . 120 569 Absorbed by Shields . | . . . . . . Core Remaining (%) 56 | 100 . . . 12 . Volleys Fired 69 | . 15 14 . 12 28 Largest 2 | . 2 2 . 1 1 Hottest 80 | . 80 80 . 40 40 Shots Fired 86 | . 30 16 . 12 28 Gun 46 | . 15 14 . 1 16 Cannon 40 | . 15 2 . 11 12 Launcher . | . . . . . . Special . | . . . . . . Kinetic 51 | . 15 2 . 11 23 Thermal 35 | . 15 14 . 1 5 Explosive . | . . . . . . Electromagnetic . | . . . . . . Robot Hit Streak 5 | . 5 3 . 1 3 Robot Miss Streak 11 | . 2 3 . 3 11 Penetration Max . | . . . . . . Secondary Targets . | . . . . . . Shots Hit Robots 85 | . 17 12 . 28 28 Core Hits 35 | . 6 6 . 4 19 Critical Kills 1 | . . . . 1 . Critical Parts Destroyed 8 | . . 1 . 4 3 Critical Strikes 12 | . 1 3 . 5 3 Burn 3 | . 1 2 . . . Smash 9 | . . 1 . 5 3 Melee Attacks 67 | . . 9 . 48 10 Impact 67 | . . 9 . 48 10 Slashing . | . . . . . . Piercing . | . . . . . . Sneak Attacks 2 | . . . . 2 . Combat Hostiles . | . . . . . . Follow-up Attacks . | . . . . . . Damage Inflicted 2482 | . 286 286 . 1257 653 Guns 318 | . 114 86 . . 118 Cannons 483 | . 172 . . 91 220 Explosions . | . . . . . . Melee 1681 | . . 200 . 1166 315 Ramming . | . . . . . . Kinetic 579 | . 172 . . 91 316 Thermal 222 | . 114 86 . . 22 Explosive . | . . . . . . Electromagnetic . | . . . . . . Impact 1681 | . . 200 . 1166 315 Slashing . | . . . . . . Piercing . | . . . . . . Highest Corruption . | . . . . . . Average Corruption . | . . . . . . Corruption Purged . | . . . . . . Corruption Blocked . | . . . . . . Overload Shots . | . . . . . . Overflow Damage 508 | . . 47 . 334 127 Projectiles . | . . . . . . Explosions . | . . . . . . Melee 508 | . . 47 . 334 127 Knockbacks 17 | . 4 . . 3 10 Impact 3 | . . . . 2 1 Kinetic 12 | . 4 . . . 8 Secondary 2 | . . . . 1 1 Self-Inflicted Damage . | . . . . . . Shots . | . . . . . . Rammed . | . . . . . . Targets Rammed . | . . . . . . Kicked . | . . . . . . Crushed . | . . . . . . Highest Temperature 116 | . 116 12 . 3 24 Average Temperature 30 | . 48 5 . 3 7 Received Heat Transfer 1281 | . 234 80 . 247 720 Siege Activations . | . . . . . . Martial Activations . | . . . . . . Shielding Activations . | . . . . . . Robots Disrupted . | . . . . . . Combat Hostiles . | . . . . . . Robots Corrupted 10 | . . . . 9 1 Combat Hostiles 9 | . . . . 8 1 Parts Fried 9 | . . . . 7 2 Impact Corruptions 19 | . . 2 . 13 4 Robots Melted . | . . . . . . Combat Hostiles . | . . . . . . Parts Melted . | . . . . . . Heat Transferred 864 | . 407 407 . . 50 Parts Sabotaged . | . . . . . . Parts Stolen . | . . . . . . Parts Stripped . | . . . . . . Power Chain Reactions . | . . . . . . Alert | -11 -10 -10 -10 -9 -8 ------- Run | Yrd Mat Min Exi Min Mat Maximum Alert Level . | . . . . . . Low Security (%) 100 | 100 100 100 . 100 100 Level 1 . | . . . . . . Level 2 . | . . . . . . Level 3 . | . . . . . . Level 4 . | . . . . . . Level 5 . | . . . . . . High Security . | . . . . . . Max Security . | . . . . . . Peak Influence 65 | . 65 40 . 50 65 Initial . | . . . . . . Average 6 | . 8 2 . 7 19 Influence Increases 539 | . 119 65 . 210 145 Destroy 0b10 Robot/C 420 | . 80 40 . 180 120 Destroy 0b10 Robot/NC 25 | . 10 . . 10 5 Destroy Leader 64 | . 14 10 . 20 20 Lose Combat Pursuer 30 | . 15 15 . . . Influence Decreases 514 | . 119 65 . 210 120 Time Decay 422 | . 119 55 . 188 60 Lost Part 92 | . . 10 . 22 60 Squads Dispatched 4 | . 2 1 . . 1 Investigation 3 | . 2 1 . . . Extermination . | . . . . . . Reinforcement 1 | . . . . . 1 Assault . | . . . . . . Garrison . | . . . . . . Intercept . | . . . . . . Searches Triggered . | . . . . . . Construction Impeded . | . . . . . . Haulers Reinforced . | . . . . . . Active Scanning Responses . | . . . . . . Cargo Convoy Interrupts . | . . . . . . Stealth | -11 -10 -10 -10 -9 -8 --------- Run | Yrd Mat Min Exi Min Mat Distress Signals 2 | . . . . 1 1 Communications Jammed . | . . . . . . Distress Signals . | . . . . . . Times Spotted 44 | . 11 8 . 12 13 Peak Tracking Total 8 | . 4 3 . 3 8 Tactical Retreats 3 | . 1 1 . 1 . Traps | -11 -10 -10 -10 -9 -8 ------- Run | Yrd Mat Min Exi Min Mat Traps Triggered 1 | . 1 . . . . Indirectly . | . . . . . . Trap Hack Attempts . | . . . . . . Triggered . | . . . . . . Disarmed . | . . . . . . Reprogrammed . | . . . . . . Reused . | . . . . . . Traps Extracted . | . . . . . . Installed . | . . . . . . Triggered . | . . . . . . Machines | -11 -10 -10 -10 -9 -8 ---------- Run | Yrd Mat Min Exi Min Mat Machines Disabled . | . . . . . . Max in Single Turn . | . . . . . . Machines Repaired . | . . . . . . Machines Dismantled . | . . . . . . Machines Sabotaged . | . . . . . . Overloaded Fab Kills . | . . . . . . Hacking | -11 -10 -10 -10 -9 -8 --------- Run | Yrd Mat Min Exi Min Mat Machines Accessed 8 | . 4 1 1 . 2 Terminals 5 | . 3 . . . 2 Fabricators . | . . . . . . Repair Stations . | . . . . . . Recycling Units 1 | . 1 . . . . Scanalyzers . | . . . . . . Garrison Access . | . . . . . . Total Hacks 17 | . 11 1 3 . 2 Successful 13 | . 7 1 3 . 2 Failed 4 | . 4 . . . . Catastrophic . | . . . . . . Database Lockouts . | . . . . . . Manual . | . . . . . . Terminals 8 | . 6 . . . 2 Fabricators . | . . . . . . Repair Stations . | . . . . . . Recycling Units 5 | . 5 . . . . Scanalyzers . | . . . . . . Garrison Access . | . . . . . . Terminal Hacks 9 | . 3 1 3 . 2 Record 6 | . 1 . 3 . 2 Open Door 1 | . . 1 . . . Emergency Access Points 1 | . 1 . . . . Zone Layout 1 | . 1 . . . . Fabricator Hacks . | . . . . . . Repair Station Hacks . | . . . . . . Recycling Unit Hacks 4 | . 4 . . . . Recycle Component 1 | . 1 . . . . Process 2 | . 2 . . . . Retrieve Components 1 | . 1 . . . . Scanalyzer . | . . . . . . Garrison Access Hacks . | . . . . . . Unauthorized Hacks . | . . . . . . Terminals . | . . . . . . Fabricators . | . . . . . . Repair Stations . | . . . . . . Recycling Units . | . . . . . . Scanalyzers . | . . . . . . Garrison Access . | . . . . . . Data Cores Recovered . | . . . . . . Used . | . . . . . . Hacking Detections 5 | . 3 . . . 2 Full Trace Events 1 | . 1 . . . . Feedback Events . | . . . . . . Feedback Blocked . | . . . . . . Robot Schematics Acquired . | . . . . . . Robots Built . | . . . . . . Authchips . | . . . . . . Time . | . . . . . . Total Robot Build Rating . | . . . . . . Part Schematics Acquired . | . . . . . . Parts Built . | . . . . . . Authchips . | . . . . . . Time . | . . . . . . Total Part Build Rating . | . . . . . . Parts Repaired . | . . . . . . Time . | . . . . . . Parts Recycled 1 | . 1 . . . . Recycled Matter 188 | . 188 . . . . Retrieved Matter . | . . . . . . Retrieved Components . | . . . . . . Parts Scanalyzed . | . . . . . . Part Schematics Acquired . | . . . . . . Parts Damaged . | . . . . . . Bothacking | -11 -10 -10 -10 -9 -8 ------------ Run | Yrd Mat Min Exi Min Mat Used RIF Installer . | . . . . . . Robots Hacked . | . . . . . . Non-combat . | . . . . . . Combat . | . . . . . . Robot Hacks Applied . | . . . . . . Relay Couplers Released . | . . . . . . Fabnet Peak Effective % . | . . . . . . Robots Rewired . | . . . . . . Allies Hacked . | . . . . . . Hacks Repelled . | . . . . . . Allies | -11 -10 -10 -10 -9 -8 -------- Run | Yrd Mat Min Exi Min Mat Total Allies . | . . . . . . Largest Group . | . . . . . . Highest-Rated Group . | . . . . . . Highest-Rated Ally . | . . . . . . Total Orders . | . . . . . . Ally Attacks . | . . . . . . Total Damage . | . . . . . . Kills . | . . . . . . Allies Corrupted . | . . . . . . Allies Melted . | . . . . . . Intel | -11 -10 -10 -10 -9 -8 ------- Run | Yrd Mat Min Exi Min Mat Active Infowar (turns) 1546 | . 748 798 . . . Sensors 1546 | . 748 798 . . . Robot Analysis Total . | . . . . . . Derelict Logs Recovered 1 | . . . . 1 . Drone Launches . | . . . . . . Drone Recoveries . | . . . . . . Exploration | -11 -10 -10 -10 -9 -8 ------------- Run | Yrd Mat Min Exi Min Mat Turns Passed 3470 | 57 785 1018 427 994 189 Spaces Moved 2415 | 33 435 602 530 703 112 Core 61 | 14 . . . 40 7 Treads 854 | 19 435 400 . . . Legs . | . . . . . . Wheels 1500 | . . 202 530 663 105 Hover . | . . . . . . Flight . | . . . . . . Fastest Speed 50 | 50 160 80 80 50 50 Average Speed 111 | 140 160 133 80 88 88 Slowest Speed 250 | 200 160 160 80 150 250 Overloaded Moves . | . . . . . . Propulsion Burnouts . | . . . . . . Robots Hopped . | . . . . . . Potential Cave-ins . | . . . . . . Cave-ins Triggered . | . . . . . . Exploration Rate (%) 52 | 3 57 82 90 71 13 Regions Visited 5 Branch Regions 3 Pre-discovered Areas 1 | . . . 1 . . Known Exits Taken 3 | . . 1 1 1 . Unknown Exits Taken 2 | 1 1 . . . . Scrap Searched 3 | . . 1 . 2 . Spaces Dug . | . . . . . . Terrain Destroyed . | . . . . . . Melee . | . . . . . . Projectile . | . . . . . . AOE . | . . . . . . Terrain Rammed . | . . . . . . Walls Destroyed . | . . . . . . Machines Disabled . | . . . . . . Actions | -11 -10 -10 -10 -9 -8 --------- Run | Yrd Mat Min Exi Min Mat Total 2995 | 44 496 785 532 978 160 Wait 376 | . 34 146 . 196 . Move 2410 | 32 434 601 529 702 112 Hop . | . . . . . . Pick Up 32 | 6 7 6 3 7 3 Fast Attach . | . . . . . . Attach 24 | 6 3 6 . 6 3 Detach . | . . . . . . Swap 5 | . . 2 . 1 2 Drop 12 | . 3 1 . 6 2 Fire 69 | . 15 14 . 12 28 Melee 67 | . . 9 . 48 10 Ram . | . . . . . . Kick . | . . . . . . Crush . | . . . . . . Escape Stasis . | . . . . . . Rewire . | . . . . . . Trap . | . . . . . . Miscellaneous . | . . . . . . Route ------- -11/Scrapyard -10/Materials (discovered 3 exits: [*Mat] / *Min x2) -10/Mines -10/Exiles (discovered 2 exits: *Min x2) -9/Mines -8/Materials History --------- Turn | Location | Event 31 | -11/Scrapyard | Discovered new exit (range 15) 58 | -11/Scrapyard | Entered Materials 59 | -10/Materials | Met a group of wandering Federalists 248 | -10/Materials | Discovered new exit (range 8) 248 | -10/Materials | Discovered new exit (range 12) 312 | -10/Materials | Build established: Mutant 370 | -10/Materials | Discovered new exit (range 8) 843 | -10/Materials | Entered Mines 1236 | -10/Mines | Met a Derelict shopkeep closing up shop 1367 | -10/Mines | Assembled infested the area 1825 | -10/Mines | Deemed a non-threat by the Exiles lab entrance 1825 | -10/Mines | Discovered new exit (range 5) 1860 | -10/Mines | Identified exit to Exiles 1861 | -10/Mines | Entered Exiles 1874 | -10/Exiles | Discovered new exit (range 15) 1906 | -10/Exiles | Met 8R-AWN 1918 | -10/Exiles | Met EX-HEX 1971 | -10/Exiles | Met EX-DEC 2002 | -10/Exiles | Visited The Gauntlet 2111 | -10/Exiles | Discovered new exit (range 14) 2156 | -10/Exiles | Learned location of Zion (-7) 2169 | -10/Exiles | Met EX-BIN 2287 | -10/Exiles | Identified exit to Mines 2288 | -10/Exiles | Entered Mines 2326 | -9/Mines | Learned Materials emergency access door positions 2348 | -9/Mines | Discovered new exit (range 10) 2364 | -9/Mines | Identified exit to Materials 2406 | -9/Mines | Excavation squad dispatched 2406 | -9/Mines | A large section of the Mines collapsed 2511 | -9/Mines | Core integrity fell below 50% 2744 | -9/Mines | Core integrity fell below 20% 2767 | -9/Mines | Lost 3 parts (1p1n1w) 3053 | -9/Mines | Found a Scrap Suit stashed away for nefarious purposes 3055 | -9/Mines | Found Scrap Suit 3282 | -9/Mines | Entered Materials 3282 | -8/Materials | Evolved 4 slots: Power x1, Propulsion x1, Utility x2 3454 | -8/Materials | Core integrity fell below 50% 3466 | -8/Materials | Core integrity fell below 20% 3471 | -8/Materials | Destroyed by G-50 Soldier with Heavy Laser Last Messages --------------- 03445_ K-01 Serf collects debris. 03446_ U-05 Engineer lays Concrete. 03447_ U-05 Engineer builds a Wall. 03448_ U-05 Engineer lays Concrete. 03448_ K-01 Serf collects debris. 03448_ G-47 Trooper knocked back. 03449_ U-05 Engineer lays Concrete. 03449_ Terminal disabled. 03450_ U-05 Engineer lays Concrete. 03451_ K-01 Serf collects debris. 03451_ G-47 Trooper knocked back. 03451_ U-05 Engineer lays Concrete. 03453_ U-05 Engineer builds a Wall. 03453_ Hvy. Mace destroyed. 03453_ G-47 Trooper destroyed. 03455_ G-50 Soldier knocked back. 03456_ Flak Cannon destroyed. 03456_ U-05 Engineer lays Concrete. 03459_ Minigun destroyed. 03460_ U-05 Engineer lays Concrete. Map ----- +----------------------------------------------------+ | ?????????????????????????????????????????????????? | | ?????????????????????????????????????????????????? | | ?????????????????????????????????????????????????? | | ??????????????####+### ????????????????????????? | | ??????????????# ??????????????????????? | | ??????????????" ^ ????????????????????? | | ??????????????Y ????????????????????? | | ??????????????" ???????????????????? | | ??????????????# ???????????????????? | | ??????????????# ??????????????????? | | ??????????????# ??????????????????? | | ?????????????## ??????????????????+ | | ?????????????? /// ?????????????????? | | ??????????????#/// ?????????????????? | | ??????????????#// #????????????????? | | ??????????????# ?????????????????? | | ??????????????# = """ ?????????????????? | | ??????????????+ "" #????????????????? | | ??????????????# "" #????????????????? | | ??????????????# #????????????????? | | ??????????????# #????????????????? | | ????????########/############## ?????????????????? | | ????????# #??????????????????????????? | | ????????#%""" [[ """ #??????????????????????????? | | ???????##[""" [| """ ########???????????????????? | | ???????# "" [| """ # @ #???????????????????? | | ???????## """ #[ #???????????????????? | | ????????# = # #???????????????????? | | ???????##+#########/### #???????????????????? | | ???????+ [ ### #?#gY #???????????????????? | | ???????#" ##"%"##=*[g #???????????????????? | | ???????#"T #=%= ###+##### ##???????????????? | | ???????#"" #= %=%=% ????????? | | ?????+?+ /% *! ! ????????? | | ???????# """ #[ ????????? | | ???????# "" # ############## ?????????? | | ???????# """ ## ##########??????????????????? | | ???????# ## # #??????????????????? | | ???????########### # """ #??????????????????? | | ?????????????????# + """ #??????????????????? | | ?????????????????# # """ #??????????????????? | | ?????????????????# # #??????????????????? | | ?????????????????# # """ #??????????????????? | | ?????????????????##### G" #??????????????????? | | ?????????????????????# """ #??????????????????? | | ?????????????????????# #??????????????????? | | ?????????????????????##########??????????????????? | | ?????????????????????????????????????????????????? | | ?????????????????????????????????????????????????? | | ?????????????????????????????????????????????????? | +----------------------------------------------------+ Best States ------------- Heat Dissipation 31 Energy Generation 14 Energy Capacity 340 Matter Stores 300 Matter Capacity 300 Sight Range 16 Robot Scan Range 14 Terrain Scan Density 110 Armor Coverage 150 Evasion (%) 44 Recoil Reduction 2 Offensive Hacking 10 Item Schematics ----------------- None Robot Schematics ------------------ None Fabricated ------------ Nothing Repaired ---------- Nothing Alien Tech Used ----------------- None Achievements -------------- I Survived The Infestation Power Corrupts Tourist Challenges ------------ None Game ------ Seed AmuletIonicCapacitor Manual? 0 Play Time 00:44:22 Cumulative 1.3 hours Start 2025.06.23 @ 20:05:32 End 2025.06.23 @ 21:06:55 Sessions 1 Manual Loads 0 Difficulty Rogue Special Mode None Game No. 3 Rogue 3 Adventurer 0 Explorer 0 Win Type - Total 0 Types 0/0/0/0/0/0/0/0/0/0 Lore% 1 Gallery% 2 Achievement% 2 Wizard Run 0 Options --------- Layout 1 ASCII 0 Keyboard 0 Movement Mouse Keybinds 0 Fullscreen 1 Font 24/Smallcaps Map View 50x35 Zoom Use 0% Tactical HUD 1 Map Filters NONE Filters NONE Steam 1 RUN: 83f544dd-147f-4443-a8dd-36124edcbafb